[Event "Early-Titled-Tuesday-Blitz-March-19-2024"]
[Site "Chess.com"]
[Date "2024.03.19"]
[Round "6"]
[White "francyIM"]
[Black "GMBenjaminBok"]
[Result "0-1"]
[WhiteElo "2823"]
[BlackElo "2976"]
[TimeControl "180+1"]
[EndTime "9:05:40 PDT"]
[Termination "GMBenjaminBok won by resignation"]

1. d4 {[%clk 0:02:55.3]} 1... Nf6 {[%clk 0:03:00]} 2. g3 {[%clk 0:02:51.8]} 2...
d5 {[%clk 0:02:59.5]} 3. Bg2 {[%clk 0:02:52]} 3... Bf5 {[%clk 0:03:00.2]} 4. c4
{[%clk 0:02:51.3]} 4... c6 {[%clk 0:03:00]} 5. Qb3 {[%clk 0:02:46.7]} 5... Qb6
{[%clk 0:02:31.8]} 6. Nc3 {[%clk 0:02:44.8]} 6... e6 {[%clk 0:02:28.9]} 7. Na4
{[%clk 0:02:34.7]} 7... Qa6 {[%clk 0:01:36.2]} 8. c5 {[%clk 0:02:25.8]} 8...
Nbd7 {[%clk 0:01:18.2]} 9. Bf1 {[%clk 0:02:18]} 9... b5 {[%clk 0:01:01]} 10. Nc3
{[%clk 0:02:17.2]} 10... Qb7 {[%clk 0:00:50.6]} 11. a4 {[%clk 0:02:12.2]} 11...
b4 {[%clk 0:00:47.7]} 12. a5 {[%clk 0:02:11]} 12... Bxc5 {[%clk 0:00:42.7]} 13.
dxc5 {[%clk 0:01:50.3]} 13... Nxc5 {[%clk 0:00:43.6]} 14. Qd1 {[%clk 0:01:45.9]}
14... bxc3 {[%clk 0:00:43.2]} 15. bxc3 {[%clk 0:01:46.8]} 15... Nb3 {[%clk
0:00:36.5]} 16. Ra3 {[%clk 0:01:45.3]} 16... Nxc1 {[%clk 0:00:36.6]} 17. Qxc1
{[%clk 0:01:45.3]} 17... Rb8 {[%clk 0:00:36.9]} 18. Nf3 {[%clk 0:01:39]} 18...
Qb1 {[%clk 0:00:27.6]} 19. Ra1 {[%clk 0:01:38]} 19... Qxc1+ {[%clk 0:00:27.4]}
20. Rxc1 {[%clk 0:01:38.9]} 20... Ke7 {[%clk 0:00:26.3]} 21. Nd4 {[%clk
0:01:38]} 21... Rhc8 {[%clk 0:00:25.7]} 22. Nxf5+ {[%clk 0:01:38]} 22... exf5
{[%clk 0:00:26.6]} 23. c4 {[%clk 0:01:38.8]} 23... dxc4 {[%clk 0:00:20.5]} 24.
e3 {[%clk 0:01:33.1]} 24... Rb5 {[%clk 0:00:20.5]} 25. Bxc4 {[%clk 0:01:32.1]}
25... Rxa5 {[%clk 0:00:20.8]} 26. O-O {[%clk 0:01:32.4]} 26... Rc5 {[%clk
0:00:20.7]} 27. Bd3 {[%clk 0:01:29.8]} 27... Rxc1 {[%clk 0:00:19.8]} 28. Rxc1
{[%clk 0:01:30.7]} 28... g6 {[%clk 0:00:20.3]} 29. Ra1 {[%clk 0:01:29.4]} 29...
Rc7 {[%clk 0:00:20.8]} 30. f3 {[%clk 0:01:29.1]} 30... Nd5 {[%clk 0:00:20.4]}
31. Bc4 {[%clk 0:01:28.2]} 31... Nb6 {[%clk 0:00:18.6]} 32. Bb3 {[%clk
0:01:25.4]} 32... c5 {[%clk 0:00:19]} 33. Kf2 {[%clk 0:01:23.1]} 33... c4 {[%clk
0:00:19.5]} 34. Bc2 {[%clk 0:01:23.6]} 34... Rd7 {[%clk 0:00:19]} 35. Ke2 {[%clk
0:01:23.7]} 35... c3 {[%clk 0:00:19.4]} 36. Ra3 {[%clk 0:01:22.8]} 36... Rd2+
{[%clk 0:00:19]} 0-1

[Event "Early-Titled-Tuesday-Blitz-March-19-2024"]
[Site "Chess.com"]
[Date "2024.03.19"]
[Round "6"]
[White "bangchess21"]
[Black "AryanTari"]
[Result "0-1"]
[WhiteElo "2839"]
[BlackElo "3012"]
[TimeControl "180+1"]
[EndTime "9:05:44 PDT"]
[Termination "AryanTari won by resignation"]

1. d4 {[%clk 0:03:00.9]} 1... d5 {[%clk 0:02:53.7]} 2. Nc3 {[%clk 0:03:00.5]}
2... Nf6 {[%clk 0:02:51.6]} 3. Bf4 {[%clk 0:03:01]} 3... g6 {[%clk 0:02:51.8]}
4. e3 {[%clk 0:03:00.2]} 4... Bg7 {[%clk 0:02:52.4]} 5. h4 {[%clk 0:03:00.9]}
5... h5 {[%clk 0:02:53]} 6. Nf3 {[%clk 0:03:00.9]} 6... O-O {[%clk 0:02:53.3]}
7. Ne5 {[%clk 0:03:01.6]} 7... c5 {[%clk 0:02:53.9]} 8. Qd2 {[%clk 0:03:01.6]}
8... cxd4 {[%clk 0:02:50.9]} 9. exd4 {[%clk 0:03:01.7]} 9... Nc6 {[%clk
0:02:51.6]} 10. f3 {[%clk 0:03:02]} 10... Qa5 {[%clk 0:02:47.7]} 11. Bb5 {[%clk
0:02:44.5]} 11... Bd7 {[%clk 0:02:32.2]} 12. Bxc6 {[%clk 0:02:34.1]} 12... bxc6
{[%clk 0:02:21.9]} 13. O-O {[%clk 0:02:25.2]} 13... Rfc8 {[%clk 0:01:42.7]} 14.
Nd3 {[%clk 0:02:19.5]} 14... Bf5 {[%clk 0:01:40.2]} 15. Nc5 {[%clk 0:02:06.8]}
15... Nd7 {[%clk 0:01:38.2]} 16. Nb3 {[%clk 0:02:05.8]} 16... Qd8 {[%clk
0:01:30.7]} 17. Na4 {[%clk 0:02:05.3]} 17... e5 {[%clk 0:01:30.6]} 18. Bg5
{[%clk 0:02:03.7]} 18... Qc7 {[%clk 0:01:23.3]} 19. Rae1 {[%clk 0:01:59.7]}
19... Re8 {[%clk 0:01:23.2]} 20. c3 {[%clk 0:01:57.6]} 20... a5 {[%clk
0:01:10.4]} 21. Nbc5 {[%clk 0:01:50.4]} 21... Nxc5 {[%clk 0:00:47.1]} 22. Nxc5
{[%clk 0:01:51.3]} 22... f6 {[%clk 0:00:46.3]} 23. Bh6 {[%clk 0:01:48.1]} 23...
Bxh6 {[%clk 0:00:45.8]} 24. Qxh6 {[%clk 0:01:47.8]} 24... exd4 {[%clk
0:00:46.6]} 25. cxd4 {[%clk 0:01:48.7]} 25... Qg3 {[%clk 0:00:46.2]} 26. Qd2
{[%clk 0:01:38.4]} 26... Qxh4 {[%clk 0:00:43.1]} 27. Nb7 {[%clk 0:01:32.8]}
27... Qg3 {[%clk 0:00:40.3]} 28. Qf2 {[%clk 0:01:11.7]} 28... Qxf2+ {[%clk
0:00:38.6]} 29. Kxf2 {[%clk 0:01:11.9]} 29... Reb8 {[%clk 0:00:39.3]} 30. Re7
{[%clk 0:00:59.8]} 30... Ra7 {[%clk 0:00:38.1]} 0-1

[Event "Early-Titled-Tuesday-Blitz-March-19-2024"]
[Site "Chess.com"]
[Date "2024.03.19"]
[Round "6"]
[White "Fjal"]
[Black "cthake"]
[Result "1-0"]
[WhiteElo "2325"]
[BlackElo "1794"]
[TimeControl "180+1"]
[EndTime "9:05:47 PDT"]
[Termination "Fjal won on time"]

1. Nf3 {[%clk 0:02:53.6]} 1... f5 {[%clk 0:02:58.3]} 2. g3 {[%clk 0:02:54.5]}
2... e6 {[%clk 0:02:58.5]} 3. Bg2 {[%clk 0:02:54.4]} 3... Nf6 {[%clk 0:02:58.6]}
4. O-O {[%clk 0:02:55.3]} 4... Be7 {[%clk 0:02:58.9]} 5. d3 {[%clk 0:02:56.2]}
5... O-O {[%clk 0:02:58.8]} 6. Nbd2 {[%clk 0:02:56.6]} 6... d5 {[%clk 0:02:59]}
7. e4 {[%clk 0:02:56.7]} 7... fxe4 {[%clk 0:02:55.9]} 8. dxe4 {[%clk 0:02:57.6]}
8... c6 {[%clk 0:02:56]} 9. Qe2 {[%clk 0:02:55.4]} 9... Qe8 {[%clk 0:02:50.8]}
10. Re1 {[%clk 0:02:55]} 10... Bc5 {[%clk 0:02:40.3]} 11. e5 {[%clk 0:02:52]}
11... Nfd7 {[%clk 0:02:32.9]} 12. Nb3 {[%clk 0:02:51.6]} 12... Bb6 {[%clk
0:02:32.4]} 13. Bd2 {[%clk 0:02:44.2]} 13... a5 {[%clk 0:02:31.9]} 14. a4 {[%clk
0:02:43.3]} 14... Na6 {[%clk 0:02:30]} 15. Bc3 {[%clk 0:02:42.8]} 15... Nac5
{[%clk 0:02:27.8]} 16. Nxc5 {[%clk 0:02:41.2]} 16... Bxc5 {[%clk 0:02:24.3]} 17.
Rad1 {[%clk 0:02:40.2]} 17... b6 {[%clk 0:02:22.5]} 18. h4 {[%clk 0:02:40.2]}
18... Ba6 {[%clk 0:02:22.5]} 19. Qd2 {[%clk 0:02:40.4]} 19... Qg6 {[%clk
0:02:16.3]} 20. Bd4 {[%clk 0:02:36.2]} 20... Bb4 {[%clk 0:02:01.4]} 21. c3
{[%clk 0:02:35.9]} 21... Be7 {[%clk 0:02:00.8]} 22. b3 {[%clk 0:02:36.1]} 22...
c5 {[%clk 0:02:00.3]} 23. Be3 {[%clk 0:02:34.9]} 23... h6 {[%clk 0:01:52.3]} 24.
Bf4 {[%clk 0:02:29.2]} 24... Rf7 {[%clk 0:01:45.9]} 25. Bh3 {[%clk 0:02:26.3]}
25... Raf8 {[%clk 0:01:38.8]} 26. h5 {[%clk 0:02:26.1]} 26... Qxh5 {[%clk
0:01:17.6]} 27. Bxe6 {[%clk 0:02:25.4]} 27... Nb8 {[%clk 0:00:57]} 28. Qxd5
{[%clk 0:02:23]} 28... Bc8 {[%clk 0:00:41.2]} 29. g4 {[%clk 0:01:57.3]} 29...
Bxe6 {[%clk 0:00:34.9]} 30. Qxe6 {[%clk 0:01:56.9]} 30... Qh3 {[%clk 0:00:29.6]}
31. Re3 {[%clk 0:01:57.4]} 31... Kh7 {[%clk 0:00:16.6]} 32. Ng5+ {[%clk
0:01:56.6]} 32... Bxg5 {[%clk 0:00:15]} 33. Rxh3 {[%clk 0:01:57.5]} 33... Rxf4
{[%clk 0:00:14.6]} 34. f3 {[%clk 0:01:55.1]} 34... Na6 {[%clk 0:00:13.2]} 35.
Qxb6 {[%clk 0:01:53.8]} 35... Nb8 {[%clk 0:00:12.3]} 36. Kg2 {[%clk 0:01:50.4]}
36... c4 {[%clk 0:00:08.2]} 37. Rd4 {[%clk 0:01:48.4]} 37... cxb3 {[%clk
0:00:06.7]} 38. Qxb3 {[%clk 0:01:46.6]} 38... Rxd4 {[%clk 0:00:04.6]} 39. cxd4
{[%clk 0:01:47.5]} 39... Nc6 {[%clk 0:00:05.1]} 40. Qc2+ {[%clk 0:01:46.9]}
40... Kg8 {[%clk 0:00:02.7]} 41. Qxc6 {[%clk 0:01:47.8]} 41... Rb8 {[%clk
0:00:01.2]} 42. Rh1 {[%clk 0:01:46.8]} 1-0

[Event "Early-Titled-Tuesday-Blitz-March-19-2024"]
[Site "Chess.com"]
[Date "2024.03.19"]
[Round "6"]
[White "ajeale2"]
[Black "IMchanged"]
[Result "0-1"]
[WhiteElo "2455"]
[BlackElo "2678"]
[TimeControl "180+1"]
[EndTime "9:05:51 PDT"]
[Termination "IMchanged won by resignation"]

1. e4 {[%clk 0:03:00.9]} 1... c6 {[%clk 0:02:52.2]} 2. d4 {[%clk 0:02:59.3]}
2... d5 {[%clk 0:02:52.6]} 3. e5 {[%clk 0:02:55.8]} 3... Bf5 {[%clk 0:02:52.6]}
4. Bd3 {[%clk 0:02:56.4]} 4... Qc8 {[%clk 0:02:48.6]} 5. Nf3 {[%clk 0:02:51.3]}
5... Bg4 {[%clk 0:02:47.4]} 6. O-O {[%clk 0:02:49.8]} 6... e6 {[%clk 0:02:46.9]}
7. c4 {[%clk 0:02:30.8]} 7... dxc4 {[%clk 0:02:45]} 8. Bxc4 {[%clk 0:02:29.5]}
8... Nd7 {[%clk 0:02:43.8]} 9. Nc3 {[%clk 0:02:26.6]} 9... Nb6 {[%clk
0:02:43.5]} 10. Be2 {[%clk 0:02:26.1]} 10... Ne7 {[%clk 0:02:41.8]} 11. a4
{[%clk 0:02:15.4]} 11... a5 {[%clk 0:02:40.9]} 12. Qb3 {[%clk 0:01:57.4]} 12...
Ned5 {[%clk 0:02:39]} 13. Ne4 {[%clk 0:01:54.6]} 13... Qd8 {[%clk 0:02:33.5]}
14. Bg5 {[%clk 0:01:50.7]} 14... Qc7 {[%clk 0:02:31.6]} 15. h3 {[%clk
0:01:39.9]} 15... Bf5 {[%clk 0:02:31.9]} 16. Bd3 {[%clk 0:00:53.2]} 16... h6
{[%clk 0:02:29.9]} 17. Bd2 {[%clk 0:00:52.4]} 17... Bxe4 {[%clk 0:02:30.1]} 18.
Bxe4 {[%clk 0:00:52.4]} 18... Bb4 {[%clk 0:02:30.8]} 19. Rac1 {[%clk 0:00:42.9]}
19... Qe7 {[%clk 0:02:22.8]} 20. Be3 {[%clk 0:00:34.4]} 20... O-O-O {[%clk
0:02:09.9]} 21. Rc2 {[%clk 0:00:32.1]} 21... f5 {[%clk 0:02:08.9]} 22. exf6
{[%clk 0:00:30.4]} 22... gxf6 {[%clk 0:02:09.4]} 23. Bd3 {[%clk 0:00:21.8]}
23... Rhg8 {[%clk 0:02:07.3]} 24. Kh1 {[%clk 0:00:20.3]} 24... Nxe3 {[%clk
0:01:59.3]} 25. fxe3 {[%clk 0:00:20.3]} 25... Nd5 {[%clk 0:02:00]} 26. Bc4
{[%clk 0:00:17.7]} 26... Kb8 {[%clk 0:01:58.1]} 27. Nd2 {[%clk 0:00:16]} 27...
f5 {[%clk 0:01:55.8]} 28. Nf3 {[%clk 0:00:10.3]} 28... Bd6 {[%clk 0:01:52.3]}
29. Ne5 {[%clk 0:00:06.3]} 29... Bxe5 {[%clk 0:01:50.3]} 30. dxe5 {[%clk
0:00:07.2]} 30... Rg3 {[%clk 0:01:49.6]} 31. Re2 {[%clk 0:00:03]} 31... Qc5
{[%clk 0:01:46.5]} 32. Bxd5 {[%clk 0:00:02.8]} 32... Qxd5 {[%clk 0:01:46.7]} 33.
Qc2 {[%clk 0:00:02.1]} 33... Rxh3+ {[%clk 0:01:46.7]} 34. Kg1 {[%clk 0:00:02.4]}
34... Rg3 {[%clk 0:01:45.2]} 35. Kf2 {[%clk 0:00:02.1]} 35... Rxg2+ {[%clk
0:01:44.4]} 36. Ke1 {[%clk 0:00:02.7]} 36... Rxe2+ {[%clk 0:01:44.6]} 37. Kxe2
{[%clk 0:00:03.2]} 37... Qxe5 {[%clk 0:01:44.9]} 38. Rf4 {[%clk 0:00:02.5]}
38... Qd5 {[%clk 0:01:39.3]} 39. Rd4 {[%clk 0:00:02.2]} 39... Qg2+ {[%clk
0:01:39.2]} 40. Kd3 {[%clk 0:00:02.1]} 40... Qxc2+ {[%clk 0:01:39.7]} 41. Kxc2
{[%clk 0:00:03]} 41... Rxd4 {[%clk 0:01:40.2]} 42. exd4 {[%clk 0:00:03.8]} 42...
h5 {[%clk 0:01:40.7]} 0-1

[Event "Early-Titled-Tuesday-Blitz-March-19-2024"]
[Site "Chess.com"]
[Date "2024.03.19"]
[Round "6"]
[White "Cheer_Down"]
[Black "Mikasinski"]
[Result "0-1"]
[WhiteElo "2448"]
[BlackElo "2647"]
[TimeControl "180+1"]
[EndTime "9:05:51 PDT"]
[Termination "Mikasinski won by resignation"]

1. e4 {[%clk 0:03:00.9]} 1... c5 {[%clk 0:02:57.9]} 2. Nf3 {[%clk 0:03:00.3]}
2... d6 {[%clk 0:02:58.5]} 3. d4 {[%clk 0:03:00.3]} 3... cxd4 {[%clk 0:02:59.4]}
4. Nxd4 {[%clk 0:03:00.8]} 4... Nf6 {[%clk 0:03:00.1]} 5. Nc3 {[%clk 0:03:00.9]}
5... a6 {[%clk 0:03:01]} 6. Rg1 {[%clk 0:03:01]} 6... e5 {[%clk 0:03:01.5]} 7.
Nb3 {[%clk 0:02:58.7]} 7... Be6 {[%clk 0:03:02]} 8. f4 {[%clk 0:02:58.4]} 8...
d5 {[%clk 0:03:02.7]} 9. fxe5 {[%clk 0:02:49.4]} 9... Nxe4 {[%clk 0:03:02.9]}
10. Nxe4 {[%clk 0:02:49.1]} 10... dxe4 {[%clk 0:03:03.4]} 11. Qxd8+ {[%clk
0:02:48.8]} 11... Kxd8 {[%clk 0:03:04.3]} 12. Be3 {[%clk 0:02:39.1]} 12... Nd7
{[%clk 0:02:45.3]} 13. O-O-O {[%clk 0:02:37.9]} 13... Kc7 {[%clk 0:02:44.7]} 14.
g3 {[%clk 0:02:00.2]} 14... Nxe5 {[%clk 0:02:35.8]} 15. Bf4 {[%clk 0:01:57.7]}
15... f6 {[%clk 0:02:35.9]} 16. Bg2 {[%clk 0:01:56]} 16... Bd6 {[%clk
0:02:28.1]} 17. Bxe4 {[%clk 0:01:47.9]} 17... Rad8 {[%clk 0:02:26.8]} 18. Nd4
{[%clk 0:01:38.8]} 18... Bg4 {[%clk 0:02:23.1]} 19. Bf5 {[%clk 0:01:36.1]} 19...
Bxd1 {[%clk 0:02:05.2]} 20. Ne6+ {[%clk 0:01:36]} 20... Kb8 {[%clk 0:01:57.9]}
21. Nxd8 {[%clk 0:01:33.8]} 21... Bf3 {[%clk 0:01:37.3]} 22. Ne6 {[%clk
0:01:30.7]} 22... g6 {[%clk 0:01:36.2]} 23. Rf1 {[%clk 0:01:23.7]} 23... Bd5
{[%clk 0:01:04.7]} 24. Bh3 {[%clk 0:01:15.5]} 24... g5 {[%clk 0:00:58]} 25. Bd2
{[%clk 0:01:05.5]} 25... g4 {[%clk 0:00:57.3]} 26. Nf4 {[%clk 0:00:56.6]} 26...
Bc4 {[%clk 0:00:50.1]} 27. Rd1 {[%clk 0:00:28.3]} 27... gxh3 {[%clk 0:00:49]}
28. Nh5 {[%clk 0:00:28.9]} 28... Be2 {[%clk 0:00:47.4]} 29. Re1 {[%clk
0:00:28.2]} 29... Bxh5 {[%clk 0:00:47.5]} 0-1

[Event "Early-Titled-Tuesday-Blitz-March-19-2024"]
[Site "Chess.com"]
[Date "2024.03.19"]
[Round "6"]
[White "geminithegreat"]
[Black "PabloZarnicki"]
[Result "0-1"]
[WhiteElo "2217"]
[BlackElo "2612"]
[TimeControl "180+1"]
[EndTime "9:05:58 PDT"]
[Termination "PabloZarnicki won on time"]

1. d4 {[%clk 0:03:00.9]} 1... Nf6 {[%clk 0:02:58.7]} 2. c4 {[%clk 0:03:00.7]}
2... g6 {[%clk 0:02:57.7]} 3. g3 {[%clk 0:03:01.3]} 3... Bg7 {[%clk 0:02:57.9]}
4. Bg2 {[%clk 0:03:02]} 4... O-O {[%clk 0:02:58.7]} 5. Nc3 {[%clk 0:03:02.6]}
5... d6 {[%clk 0:02:58.7]} 6. Nf3 {[%clk 0:03:03.2]} 6... Nbd7 {[%clk
0:02:58.4]} 7. O-O {[%clk 0:03:03.5]} 7... e5 {[%clk 0:02:59.3]} 8. e4 {[%clk
0:03:03.8]} 8... exd4 {[%clk 0:02:59.6]} 9. Nxd4 {[%clk 0:03:03.4]} 9... Re8
{[%clk 0:03:00.5]} 10. Re1 {[%clk 0:03:03.2]} 10... h6 {[%clk 0:02:58]} 11. h3
{[%clk 0:03:02.8]} 11... Nc5 {[%clk 0:02:57.5]} 12. Rb1 {[%clk 0:02:50.9]} 12...
Ne6 {[%clk 0:02:53.2]} 13. Be3 {[%clk 0:02:45.3]} 13... Ng5 {[%clk 0:02:53.3]}
14. Bxg5 {[%clk 0:02:30.9]} 14... hxg5 {[%clk 0:02:52.5]} 15. b4 {[%clk
0:02:24]} 15... a5 {[%clk 0:02:45.8]} 16. a3 {[%clk 0:02:23.8]} 16... axb4
{[%clk 0:02:44.6]} 17. axb4 {[%clk 0:02:24.7]} 17... Bd7 {[%clk 0:02:42]} 18.
Qd2 {[%clk 0:02:20.5]} 18... g4 {[%clk 0:02:38.5]} 19. h4 {[%clk 0:02:08.4]}
19... c6 {[%clk 0:02:30.7]} 20. Nb3 {[%clk 0:01:56.2]} 20... Be6 {[%clk
0:02:28.4]} 21. Bf1 {[%clk 0:01:44.4]} 21... Nd7 {[%clk 0:02:26.4]} 22. Nd4
{[%clk 0:01:35.7]} 22... Ne5 {[%clk 0:02:20.6]} 23. Nxe6 {[%clk 0:00:36.8]}
23... Nf3+ {[%clk 0:02:18.9]} 24. Kg2 {[%clk 0:00:37.4]} 24... Rxe6 {[%clk
0:02:13.1]} 25. Qc2 {[%clk 0:00:34.3]} 25... Nxe1+ {[%clk 0:02:09.7]} 26. Rxe1
{[%clk 0:00:35.2]} 26... Ra3 {[%clk 0:02:08.4]} 27. Nb1 {[%clk 0:00:32.8]} 27...
Ra1 {[%clk 0:02:04.1]} 28. Be2 {[%clk 0:00:31.7]} 28... Qa8 {[%clk 0:01:49]} 29.
Bxg4 {[%clk 0:00:30.6]} 29... Re8 {[%clk 0:01:49.1]} 30. c5 {[%clk 0:00:20.9]}
30... dxc5 {[%clk 0:01:45]} 31. Qxc5 {[%clk 0:00:21.6]} 31... Qa2 {[%clk
0:01:38.3]} 32. Nc3 {[%clk 0:00:05.1]} 32... Qb2 {[%clk 0:01:28.6]} 33. Rxa1
{[%clk 0:00:04]} 33... Qxa1 {[%clk 0:01:29.5]} 34. Ne2 {[%clk 0:00:03.4]} 34...
Qe5 {[%clk 0:01:25.7]} 0-1

[Event "Early-Titled-Tuesday-Blitz-March-19-2024"]
[Site "Chess.com"]
[Date "2024.03.19"]
[Round "6"]
[White "SharapovEvgeny"]
[Black "temus_galaktionov"]
[Result "0-1"]
[WhiteElo "2565"]
[BlackElo "2853"]
[TimeControl "180+1"]
[EndTime "9:06:02 PDT"]
[Termination "temus_galaktionov won by resignation"]

1. e4 {[%clk 0:03:00.1]} 1... c6 {[%clk 0:02:58.6]} 2. d4 {[%clk 0:02:59.8]}
2... d6 {[%clk 0:02:59.5]} 3. Nc3 {[%clk 0:02:59]} 3... g6 {[%clk 0:03:00.4]} 4.
f4 {[%clk 0:02:59]} 4... Bg7 {[%clk 0:02:56.1]} 5. Nf3 {[%clk 0:02:58.8]} 5...
Nd7 {[%clk 0:02:57]} 6. e5 {[%clk 0:02:56.4]} 6... dxe5 {[%clk 0:02:53.5]} 7.
dxe5 {[%clk 0:02:55.4]} 7... h5 {[%clk 0:02:52.8]} 8. Be3 {[%clk 0:02:54.5]}
8... Nh6 {[%clk 0:02:52.6]} 9. Qd2 {[%clk 0:02:54.5]} 9... Nb6 {[%clk
0:02:52.1]} 10. Qxd8+ {[%clk 0:02:52.9]} 10... Kxd8 {[%clk 0:02:53]} 11. O-O-O+
{[%clk 0:02:53.2]} 11... Kc7 {[%clk 0:02:53.7]} 12. h3 {[%clk 0:02:49.4]} 12...
Bf5 {[%clk 0:02:48.1]} 13. Nd4 {[%clk 0:02:43.9]} 13... Bd7 {[%clk 0:02:45.8]}
14. Be2 {[%clk 0:02:40.8]} 14... Rad8 {[%clk 0:02:45.4]} 15. Rhe1 {[%clk
0:02:34]} 15... Bc8 {[%clk 0:02:44.4]} 16. Nf3 {[%clk 0:02:25.4]} 16... f6
{[%clk 0:02:33.1]} 17. exf6 {[%clk 0:02:24.3]} 17... exf6 {[%clk 0:02:34]} 18.
Nh4 {[%clk 0:02:17.1]} 18... Bf5 {[%clk 0:02:30.5]} 19. Nxf5 {[%clk 0:02:16.1]}
19... Nxf5 {[%clk 0:02:31.4]} 20. Bf2 {[%clk 0:02:14.8]} 20... Bh6 {[%clk
0:02:29.9]} 21. Ne4 {[%clk 0:01:40.2]} 21... Bxf4+ {[%clk 0:02:26.6]} 22. Kb1
{[%clk 0:01:40.1]} 22... Nd5 {[%clk 0:02:17.3]} 23. Nc5 {[%clk 0:01:32.9]} 23...
Rde8 {[%clk 0:01:55.2]} 24. Bc4 {[%clk 0:01:29.8]} 24... Rxe1 {[%clk 0:01:46.1]}
25. Rxe1 {[%clk 0:01:26.4]} 25... Be3 {[%clk 0:01:46.6]} 26. Bxe3 {[%clk
0:01:15.5]} 26... Ndxe3 {[%clk 0:01:47.5]} 27. Be6 {[%clk 0:01:03.5]} 27... Nxg2
{[%clk 0:01:41.9]} 28. Rg1 {[%clk 0:01:01.4]} 28... Nfe3 {[%clk 0:01:37.2]} 29.
Nd3 {[%clk 0:00:55.5]} 29... g5 {[%clk 0:01:29.1]} 30. Kc1 {[%clk 0:00:51.3]}
30... h4 {[%clk 0:01:27.3]} 31. Kd2 {[%clk 0:00:50.4]} 31... Re8 {[%clk
0:01:27.6]} 32. Bf7 {[%clk 0:00:47.3]} 32... Re7 {[%clk 0:01:27.5]} 33. Bg8
{[%clk 0:00:44.9]} 33... f5 {[%clk 0:01:26.4]} 34. Nc5 {[%clk 0:00:39.8]} 34...
Kd6 {[%clk 0:01:23.6]} 35. b4 {[%clk 0:00:37.5]} 35... b6 {[%clk 0:01:23]} 36.
Nb3 {[%clk 0:00:36.7]} 36... c5 {[%clk 0:01:20.1]} 37. bxc5+ {[%clk 0:00:36.3]}
37... bxc5 {[%clk 0:01:21]} 38. Na5 {[%clk 0:00:35.1]} 38... f4 {[%clk
0:01:17.5]} 39. Nc4+ {[%clk 0:00:21.6]} 39... Nxc4+ {[%clk 0:01:17.1]} 40. Bxc4
{[%clk 0:00:21.6]} 40... f3 {[%clk 0:01:15.4]} 41. Rf1 {[%clk 0:00:20.1]} 41...
Ne3 {[%clk 0:01:15]} 0-1

[Event "Early-Titled-Tuesday-Blitz-March-19-2024"]
[Site "Chess.com"]
[Date "2024.03.19"]
[Round "6"]
[White "ChempionBg"]
[Black "bennyficial"]
[Result "1-0"]
[WhiteElo "2366"]
[BlackElo "2119"]
[TimeControl "180+1"]
[EndTime "9:06:02 PDT"]
[Termination "ChempionBg won by resignation"]

1. d4 {[%clk 0:02:27.9]} 1... Nf6 {[%clk 0:02:58.4]} 2. c4 {[%clk 0:02:26.8]}
2... e6 {[%clk 0:02:58.5]} 3. Nf3 {[%clk 0:02:24.8]} 3... d5 {[%clk 0:02:57.7]}
4. g3 {[%clk 0:02:17.2]} 4... Bb4+ {[%clk 0:02:55.8]} 5. Bd2 {[%clk 0:02:15.9]}
5... Be7 {[%clk 0:02:56.3]} 6. Bg2 {[%clk 0:02:15]} 6... O-O {[%clk 0:02:56.2]}
7. O-O {[%clk 0:02:15.1]} 7... c6 {[%clk 0:02:55.8]} 8. Qc2 {[%clk 0:02:14.2]}
8... Nbd7 {[%clk 0:02:53]} 9. Nc3 {[%clk 0:02:14.1]} 9... dxc4 {[%clk
0:02:52.2]} 10. Bf4 {[%clk 0:02:12.9]} 10... Nd5 {[%clk 0:02:38.9]} 11. e4
{[%clk 0:01:59.2]} 11... Nxf4 {[%clk 0:02:35.9]} 12. gxf4 {[%clk 0:01:59.4]}
12... b5 {[%clk 0:02:22.8]} 13. Rad1 {[%clk 0:01:50.4]} 13... Rb8 {[%clk
0:02:14.6]} 14. d5 {[%clk 0:01:48.8]} 14... cxd5 {[%clk 0:02:10.2]} 15. exd5
{[%clk 0:01:47.9]} 15... Nc5 {[%clk 0:02:06.9]} 16. Nd4 {[%clk 0:01:43.9]} 16...
Bb7 {[%clk 0:01:50.2]} 17. dxe6 {[%clk 0:01:40.7]} 17... Bxg2 {[%clk 0:01:46]}
18. Kxg2 {[%clk 0:01:38.2]} 18... Qc8 {[%clk 0:01:38.2]} 19. Nd5 {[%clk
0:01:30.9]} 19... Bh4 {[%clk 0:01:30.3]} 20. Nf5 {[%clk 0:01:15.4]} 20... Qb7
{[%clk 0:01:12.4]} 21. e7 {[%clk 0:00:53.3]} 21... Nd3 {[%clk 0:01:06.9]} 22.
exf8=Q+ {[%clk 0:00:45.7]} 22... Kxf8 {[%clk 0:00:56.2]} 23. Rxd3 {[%clk
0:00:28]} 23... cxd3 {[%clk 0:00:56.3]} 24. Qc5+ {[%clk 0:00:24.5]} 24... Kg8
{[%clk 0:00:41.2]} 25. Nxh4 {[%clk 0:00:24.4]} 25... Rc8 {[%clk 0:00:36.7]} 26.
Qxc8+ {[%clk 0:00:23.1]} 1-0

[Event "Early-Titled-Tuesday-Blitz-March-19-2024"]
[Site "Chess.com"]
[Date "2024.03.19"]
[Round "6"]
[White "BardArtem"]
[Black "toninhojit"]
[Result "1-0"]
[WhiteElo "2820"]
[BlackElo "2488"]
[TimeControl "180+1"]
[EndTime "9:06:05 PDT"]
[Termination "BardArtem won by resignation"]

1. e4 {[%clk 0:03:00.9]} 1... e5 {[%clk 0:03:00]} 2. d4 {[%clk 0:02:56.4]} 2...
exd4 {[%clk 0:02:59.9]} 3. Qxd4 {[%clk 0:02:57.3]} 3... Nc6 {[%clk 0:02:59.9]}
4. Qd3 {[%clk 0:02:54.1]} 4... Nf6 {[%clk 0:02:59.8]} 5. Nc3 {[%clk 0:02:53.2]}
5... Bb4 {[%clk 0:02:58.7]} 6. Bd2 {[%clk 0:02:52.9]} 6... O-O {[%clk
0:02:58.9]} 7. Nge2 {[%clk 0:02:51.8]} 7... d6 {[%clk 0:02:58.5]} 8. O-O-O
{[%clk 0:02:51.3]} 8... Be6 {[%clk 0:02:57.8]} 9. f4 {[%clk 0:02:37.1]} 9... Bc5
{[%clk 0:02:53.4]} 10. f5 {[%clk 0:02:29.9]} 10... Nb4 {[%clk 0:02:49]} 11. Qh3
{[%clk 0:02:20.4]} 11... Nxa2+ {[%clk 0:02:48.3]} 12. Nxa2 {[%clk 0:02:20.1]}
12... Bxa2 {[%clk 0:02:49.2]} 13. Nc3 {[%clk 0:02:09.2]} 13... Qd7 {[%clk
0:02:37.9]} 14. Bd3 {[%clk 0:01:54.2]} 14... b5 {[%clk 0:02:28.6]} 15. Nxa2
{[%clk 0:01:52.5]} 15... b4 {[%clk 0:02:27.8]} 16. Bxb4 {[%clk 0:01:39.6]} 16...
Bxb4 {[%clk 0:02:18.1]} 17. Nxb4 {[%clk 0:01:40.5]} 17... Qa4 {[%clk 0:02:18.6]}
18. Nd5 {[%clk 0:01:22.6]} 18... Qa1+ {[%clk 0:02:17.3]} 19. Kd2 {[%clk
0:01:22.4]} 19... Qxb2 {[%clk 0:02:18.2]} 20. Rb1 {[%clk 0:01:13.9]} 20... Qd4
{[%clk 0:02:12.8]} 21. Qe3 {[%clk 0:00:54]} 21... Qe5 {[%clk 0:02:03.5]} 22. Rb5
{[%clk 0:00:44.6]} 22... c5 {[%clk 0:02:02.3]} 23. Qg3 {[%clk 0:00:29.2]} 23...
Qd4 {[%clk 0:01:57.3]} 24. Nxf6+ {[%clk 0:00:21.5]} 24... Qxf6 {[%clk
0:01:58.2]} 25. Rhb1 {[%clk 0:00:16.1]} 25... Rfe8 {[%clk 0:01:57.4]} 26. Rb7
{[%clk 0:00:15.4]} 26... a5 {[%clk 0:01:36.6]} 27. Bc4 {[%clk 0:00:10.9]} 27...
Qd4+ {[%clk 0:01:33.6]} 28. Qd3 {[%clk 0:00:10.9]} 28... Qf2+ {[%clk 0:01:33.7]}
29. Kc3 {[%clk 0:00:11.6]} 29... Red8 {[%clk 0:01:25.1]} 30. Rxf7 {[%clk
0:00:10.2]} 30... Kh8 {[%clk 0:01:25.7]} 31. f6 {[%clk 0:00:06.7]} 31... g6
{[%clk 0:01:13.7]} 32. Rxh7+ {[%clk 0:00:03.7]} 1-0